bitfinex/quotes_SOLUSD_20250506
["timestamp","ask_amount","ask_price","bid_price","bid_amount"]
[1746503416703,40.25885799,145.01,144.97,14.71304932]
[1746503416921,18.64964886,144.97,144.94,94.48]
[1746503417089,18.64964886,144.97,144.95,14.71304932]
[1746503419991,18.64964886,144.97,144.94,13.48]
[1746503420192,18.64964886,144.97,144.95,14.71304932]
[1746503420601,18.64964886,144.97,144.96,14.71304932]
[1746503420812,18.64964886,144.97,144.94,13.48]
[1746503421011,18.64964886,144.97,144.96,14.71304932]
[1746503421913,25.54686669,144.99,144.96,14.71304932]
[1746503422300,25.54686669,144.99,144.94,13.48]
[1746503422301,25.54686669,144.99,144.97,14.71304932]
[1746503423916,40.71304932,145.02,144.98,14.71304932]
[1746503424121,44.64964886,144.99,144.98,14.71304932]
[1746503428923,44.64964886,144.99,144.97,14.71304932]
[1746503429326,18.64964886,144.98,144.97,14.71304932]
[1746503429551,18.64964886,144.98,144.96,14.71304932]
[1746503442138,18.64964886,144.98,144.97,14.71304932]
[1746503442638,25.54638239,145.0,144.97,14.71304932]
[1746503442824,18.64964886,145.0,144.99,14.71304932]
[1746503443218,18.64964886,145.0,144.98,14.71304932]
[1746503444942,25.54621511,145.0,144.98,14.71304932]
[1746503449847,25.54621511,145.0,144.98,9.39900912]
[1746503450046,18.64964886,145.0,144.99,9.39900912]
[1746503452148,18.64964886,145.0,144.98,9.39900912]
[1746503452349,25.5462028,145.0,144.97,9.39900912]
[1746503452650,25.5462028,145.0,144.98,9.39900912]
[1746503452942,18.64964886,145.0,144.98,9.39900912]
[1746503456153,18.64964886,145.0,144.99,9.39900912]
[1746503459450,18.64964886,145.0,144.97,9.39900912]
[1746503459751,9.54117069,144.99,144.96,81.0]
[1746503460752,18.64964886,144.97,144.96,81.0]
[1746503460962,18.64964886,144.97,144.96,90.39900912]
[1746503461846,18.64964886,144.97,144.96,95.69047631]
[1746503463853,18.64964886,144.97,144.96,81.0]
[1746503463854,6.89797889,144.97,144.96,81.0]
[1746503464053,6.89797889,144.97,144.95,28.17047631]
[1746503464569,33.48228674,144.97,144.95,13.48]
[1746503464754,18.79181043,144.97,144.95,13.48]
[1746503464929,33.48228674,144.97,144.95,13.48]
[1746503466158,6.89845474,144.96,144.95,13.48]
[1746503468257,40.38074148,144.96,144.95,13.48]
[1746503468434,44.79181043,144.95,144.91,13.46]
[1746503468640,18.64964886,144.92,144.91,13.46]
[1746503469142,18.64964886,144.96,144.91,109.15047631]
[1746503469455,18.64964886,144.96,144.94,14.69047631]
[1746503469654,18.64964886,144.96,144.95,14.69047631]
[1746503470041,18.64964886,144.95,144.92,14.69047631]
[1746503470236,33.34012517,144.93,144.91,13.46]
[1746503471457,6.90035881,144.92,144.91,13.46]
[1746503475551,33.34012517,144.93,144.91,13.46]
[1746503475759,18.64964886,144.93,144.91,28.15047631]
[1746503476269,6.8985813,144.96,144.92,14.69047631]
[1746503476474,18.64964886,144.95,144.93,14.69047631]
[1746503476647,18.64964886,144.95,144.94,14.69047631]
[1746503478468,18.64964886,144.96,144.94,14.69047631]
[1746503478663,18.64964886,144.96,144.95,14.69047631]
[1746503479272,18.64964886,144.96,144.94,14.69047631]
[1746503479473,18.64964886,144.96,144.93,14.69047631]
[1746503480173,25.5481065,144.96,144.93,14.69047631]
[1746503481172,40.23858281,144.96,144.92,81.0]
[1746503481349,18.64964886,144.93,144.91,13.46]
[1746503482571,25.54966127,144.93,144.91,13.46]
[1746503486182,40.24013758,144.93,144.91,13.46]
[1746503486476,18.64964886,144.91,144.88,81.0]
[1746503486657,33.34012517,144.91,144.87,109.15047631]
[1746503487072,18.64964886,144.91,144.88,14.69047631]
[1746503487569,18.64964886,144.91,144.89,14.69047631]
[1746503488067,25.55051856,144.91,144.89,14.69047631]
[1746503488264,25.55051856,144.91,144.88,14.69047631]
[1746503489876,18.64964886,144.91,144.89,14.69047631]
[1746503490079,18.64964886,144.91,144.9,14.69047631]
[1746503490379,18.64964886,144.92,144.9,14.69047631]
[1746503490676,18.64964886,144.92,144.91,14.69047631]
[1746503491677,32.89956114,144.94,144.91,14.69047631]
[1746503491881,25.54822758,144.96,144.93,14.69047631]
[1746503493483,14.83263788,144.95,144.91,14.69047631]
[1746503493658,18.64964886,144.93,144.9,14.69047631]
[1746503493975,33.34012517,144.93,144.89,14.69047631]
[1746503494162,18.64964886,144.93,144.9,14.69047631]
[1746503495178,25.54983349,144.93,144.9,14.69047631]
[1746503495973,18.64964886,144.93,144.9,14.69047631]
[1746503496175,18.64964886,144.93,144.91,14.69047631]
[1746503497768,21.7316689,144.95,144.92,14.69047631]
[1746503497769,18.64964886,144.95,144.92,14.69047631]
[1746503497958,18.64964886,144.95,144.93,14.69047631]
[1746503500982,18.64964886,144.95,144.92,28.15047631]
[1746503502385,40.23928215,144.95,144.92,13.46]
[1746503502685,18.64964886,144.93,144.92,13.46]
[1746503505190,18.64964886,144.93,144.92,28.15047631]
[1746503505490,18.64964886,144.95,144.92,28.15047631]
[1746503505667,18.64964886,144.95,144.93,14.69047631]
[1746503506672,18.64964886,144.95,144.92,28.15047631]
[1746503506872,25.54862109,144.95,144.92,28.15047631]
[1746503507692,25.54862109,144.95,144.92,13.46]
[1746503507997,25.54862109,144.95,144.92,28.15047631]
[1746503509792,25.54862109,144.95,144.92,14.69047631]
[1746503520605,26.0,144.96,144.94,14.69047631]
[1746503520977,32.89846499,144.96,144.94,14.69047631]
[1746503521204,32.89846499,144.96,144.93,14.69047631]
[1746503523500,32.89846499,144.96,144.94,14.69047631]
[1746503526602,26.0,144.96,144.94,14.69047631]
[1746503527408,26.0,144.96,144.95,14.69047631]
[1746503529508,17.2390028,145.02,144.95,28.15047631]
[1746503529801,18.64964886,145.0,144.97,14.69047631]
[1746503530806,25.54620058,145.0,144.97,14.69047631]
[1746503535719,40.23667689,145.0,144.95,13.46]
[1746503535916,14.69047631,144.99,144.95,28.15047631]
[1746503536414,40.23667689,145.0,144.96,14.69047631]
[1746503539593,25.54620058,145.0,144.97,14.69047631]
[1746503542213,40.23667689,145.0,144.96,14.69047631]
[1746503542419,40.23667689,145.0,144.95,13.46]
[1746503542608,18.64964886,144.98,144.95,28.15047631]
[1746503544322,25.54756574,144.98,144.95,28.15047631]
[1746503544821,25.54756574,144.98,144.96,14.69047631]
[1746503548131,18.64964886,144.98,144.96,14.69047631]
[1746503548311,18.64964886,144.98,144.97,14.69047631]
[1746503548900,6.89667077,145.0,144.97,14.69047631]
[1746503549112,18.64964886,144.99,144.95,20.35879136]
[1746503549321,25.54429861,145.04,144.98,14.69047631]
[1746503549526,25.54429861,145.04,144.97,95.69047631]
[1746503549714,0.14216157,145.03,144.97,95.69047631]
[1746503549917,25.54429861,145.04,144.97,95.69047631]
[1746503550220,0.14216157,145.03,144.97,95.69047631]
[1746503550428,0.14216157,145.03,144.97,102.5883456]
[1746503550630,0.14216157,145.03,145.0,14.69047631]
[1746503552833,6.8956006,145.02,145.0,14.69047631]
[1746503563043,18.64964886,145.01,145.0,14.69047631]
[1746503566338,40.69047631,145.04,145.0,14.69047631]
[1746503566339,26.0,145.04,145.0,14.69047631]
[1746503566550,44.64964886,145.04,145.03,14.69047631]
[1746503567838,44.64964886,145.04,145.03,9.392599]
[1746503568437,51.54429861,145.04,145.03,9.392599]
[1746503569545,51.54429861,145.04,145.02,9.392599]
[1746503569746,51.54429861,145.04,145.02,14.67716699]
[1746503573754,51.54429861,145.04,145.0,94.44]
[1746503573938,51.54429861,145.04,145.02,14.67716699]
[1746503574954,6.89369915,145.06,145.03,14.67716699]
[1746503575169,18.64964886,145.05,145.04,14.67716699]
[1746503575851,25.54382328,145.05,145.04,14.67716699]
[1746503576057,25.54382328,145.05,145.03,14.67716699]
[1746503576352,25.54382328,145.05,145.02,14.67716699]
[1746503579954,25.54382328,145.05,145.0,94.44]
[1746503580255,25.54382328,145.05,145.0,28.11716699]
[1746503580256,40.81932856,145.04,145.0,28.11716699]
[1746503581658,40.81932856,145.04,145.0,13.44]
[1746503581842,46.87202856,145.04,145.0,28.11716699]
[1746503582357,40.22194099,145.03,145.0,13.44]
[1746503584039,40.22194099,145.03,145.0,28.11716699]
[1746503584241,25.544774,145.03,145.0,28.11716699]
[1746503587339,6.1089,145.09,145.02,14.67716699]
[1746503587540,1.644,145.11,145.08,14.67716699]
[1746503587951,26.0,145.09,145.08,14.67716699]
[1746503588160,26.0,145.09,145.07,14.67716699]
[1746503588352,26.0,145.09,145.05,13.44]
[1746503588353,18.64964886,145.08,145.05,13.44]
[1746503588555,59.32681585,145.06,145.02,14.67716699]
[1746503588938,59.32681585,145.06,145.01,13.44]
[1746503589140,44.64964886,145.06,145.03,14.67716699]
[1746503589440,51.54379592,145.06,145.03,14.67716699]
[1746503592564,51.54379592,145.06,145.04,14.67716699]
[1746503593258,44.64964886,145.05,145.04,14.67716699]
[1746503594462,44.64964886,145.05,145.03,14.67716699]
[1746503594674,18.64964886,145.05,145.04,14.67716699]
[1746503595149,18.64964886,145.05,145.03,14.67716699]
[1746503596162,18.64964886,145.05,145.04,14.67716699]
[1746503601178,18.64964886,145.04,145.01,109.11716699]
[1746503601380,18.64964886,145.04,145.01,13.44]
[1746503601668,18.64964886,145.04,145.01,28.11716699]
[1746503601841,18.64964886,145.04,145.02,14.67716699]
[1746503602971,18.64964886,145.04,145.01,13.44]
[1746503602972,6.89468587,145.04,145.01,13.44]
[1746503603148,18.64964886,145.03,145.01,13.44]
[1746503603661,25.54433473,145.04,145.01,28.11716699]
[1746503603851,25.54433473,145.04,145.02,14.67716699]
[1746503604171,25.54433473,145.04,145.01,28.11716699]
[1746503606251,25.54433473,145.04,145.01,13.44]
[1746503606252,18.79181043,145.03,145.01,13.44]
[1746503607072,18.64964886,145.01,145.0,14.67716699]
[1746503610870,25.5449695,145.03,145.0,14.67716699]
[1746503611075,18.64964886,145.03,145.02,14.67716699]
[1746503611482,18.64964886,145.03,144.98,6.89717365]
[1746503611483,25.544774,145.03,145.01,14.67716699]
[1746503612975,25.544774,145.03,145.0,14.67716699]
[1746503615880,18.64964886,145.03,145.01,14.67716699]
[1746503616181,18.64964886,145.03,145.02,14.67716699]
[1746503617191,18.64964886,145.05,145.02,14.67716699]
[1746503617367,18.64964886,145.05,145.04,14.67716699]
[1746503617770,18.64964886,145.05,145.03,14.67716699]
[1746503619461,18.64964886,145.05,145.04,14.67716699]
[1746503620079,18.64964886,145.05,145.03,14.67716699]
[1746503623983,6.89232839,145.09,145.04,14.67716699]
[1746503624185,6.89232839,145.09,145.06,14.67716699]
[1746503624186,18.64964886,145.08,145.06,14.67716699]
[1746503624884,14.81932856,145.07,145.04,95.67716699]
[1746503625788,14.81932856,145.07,145.04,81.0]
[1746503626002,0.14216157,145.07,145.04,95.67716699]
[1746503626292,7.03570281,145.07,145.04,95.67716699]
[1746503626589,7.03570281,145.07,145.04,14.67716699]
[1746503626791,6.89354124,145.07,145.04,14.67716699]
[1746503631290,6.89354124,145.07,145.02,13.5]
[1746503631494,6.89354124,145.07,145.03,14.67716699]
[1746503631792,6.89354124,145.07,145.04,14.67716699]
[1746503633171,6.89354124,145.07,145.03,14.67716699]
[1746503637094,6.89354124,145.07,145.04,14.67716699]
[1746503637902,14.67716699,145.05,145.02,13.5]
[1746503638091,18.79181043,145.04,145.02,13.5]
[1746503639589,6.89512514,145.03,145.02,13.5]
[1746503640200,6.89512514,145.03,145.02,28.17716699]
[1746503640570,6.89512514,145.03,145.02,13.5]
[1746503645382,18.64964886,145.02,145.01,14.67716699]
[1746503646604,25.68666595,145.04,145.01,14.67716699]
[1746503646903,25.54450438,145.04,145.02,14.67716699]
[1746503647600,25.54450438,145.04,145.01,14.67716699]
[1746503655894,25.54450438,145.04,145.02,14.67716699]
[1746503657706,25.54450438,145.04,145.02,9.39417432]
[1746503658110,25.54450438,145.04,145.01,9.39417432]
[1746503658906,25.54450438,145.04,144.99,6.89696859]
[1746503658907,25.54450438,145.04,145.02,9.39417432]
[1746503662411,0.14216157,145.04,145.02,9.39417432]
[1746503666612,0.14216157,145.04,144.99,6.89702738]
[1746503666914,0.14216157,145.04,145.02,9.39417432]
[1746503671410,18.64964886,145.05,145.03,9.39417432]
[1746503671714,18.64964886,145.05,145.0,6.89655172]
[1746503671909,18.64964886,145.05,145.04,9.39417432]
[1746503674721,18.64964886,145.05,145.03,9.39417432]
[1746503675112,25.54384156,145.05,145.0,81.0]
[1746503675414,25.54384156,145.05,145.01,9.39417432]
[1746503675711,34.93801588,145.05,145.01,9.39417432]
[1746503677320,18.64964886,145.02,144.99,94.44]
[1746503677620,18.64964886,145.02,144.99,22.83417432]
[1746503677793,18.64964886,145.02,145.0,9.39417432]
[1746503678514,18.64964886,145.02,144.99,13.44]
[1746503678704,18.64964886,145.02,145.0,9.39417432]
[1746503681119,18.64964886,145.02,145.01,9.39417432]
[1746503681302,26.0,145.06,145.01,9.39417432]
[1746503681503,18.64964886,145.05,145.03,9.39417432]
[1746503681712,18.64964886,145.05,145.03,14.67466387]
[1746503682621,25.54400605,145.05,145.03,14.67466387]
[1746503692737,18.64964886,145.05,145.04,14.67466387]
[1746503700949,18.64964886,145.05,145.02,6.89559038]
[1746503701150,18.64964886,145.05,145.04,14.67466387]
[1746503701867,18.64964886,145.05,145.04,9.39067376]
[1746503711285,18.64964886,145.05,145.03,9.39067376]
[1746503715388,18.64964886,145.05,145.04,9.39067376]
[1746503715885,18.64964886,145.05,145.03,9.39067376]
[1746503727799,18.64964886,145.06,145.04,9.39067376]
[1746503727975,18.64964886,145.06,145.05,9.39067376]
[1746503731580,18.64964886,145.07,145.05,9.39067376]
[1746503731781,18.64964886,145.07,145.06,9.39067376]
[1746503732704,18.64964886,145.07,145.03,6.89499152]
[1746503733004,18.64964886,145.07,145.05,9.39067376]
[1746503734212,25.54290677,145.07,145.05,9.39067376]
[1746503734415,25.54290677,145.07,145.04,9.39067376]
[1746503734709,41.49258053,145.07,145.03,9.39067376]
[1746503736518,18.64964886,145.04,145.01,13.44]
[1746503736686,9.39067376,145.04,145.01,13.44]
[1746503737395,25.68665404,145.04,145.01,22.83067376]
[1746503738514,25.54449247,145.04,145.01,22.83067376]
[1746503738814,34.93516623,145.04,145.01,13.44]
[1746503740589,25.54449247,145.04,145.01,13.44]
[1746503740792,25.54449247,145.04,145.01,22.83067376]
[1746503750710,18.64964886,145.04,145.01,22.83067376]
[1746503750916,18.64964886,145.04,145.03,9.39067376]
[1746503751130,18.64964886,145.04,145.02,9.39067376]
[1746503754931,7.03592756,145.06,145.03,9.39067376]
[1746503755225,18.64964886,145.05,145.04,9.39067376]
[1746503758937,18.64964886,145.05,145.01,101.33587213]
[1746503759122,18.64964886,145.05,145.03,9.39067376]
[1746503764627,6.89437566,145.05,145.03,9.39067376]
[1746503764936,6.89390453,145.06,145.03,9.39067376]
[1746503765136,18.64964886,145.05,145.03,9.39067376]
[1746503768148,6.89427644,145.05,145.03,9.39067376]
[1746503768541,18.64964886,145.05,145.03,9.39067376]
[1746503769638,18.64964886,145.05,145.02,9.39067376]
[1746503770229,25.544065,145.05,145.02,9.39067376]
[1746503775361,6.89388881,145.06,145.03,9.39067376]
[1746503776053,18.64964886,145.05,145.03,9.39067376]
[1746503777257,18.64964886,145.05,145.04,9.39067376]
[1746503779659,18.64964886,145.05,145.03,9.39067376]
[1746503780865,25.54387604,145.05,145.02,9.39067376]
[1746503781567,18.64964886,145.04,145.02,9.39067376]
[1746503781856,18.64964886,145.04,145.01,103.83067376]
[1746503782044,18.64964886,145.04,145.01,22.83067376]
[1746503782239,34.93507705,145.04,145.01,13.44]
[1746503783758,9.53283533,145.03,145.01,13.44]
[1746503783978,9.39067376,145.03,145.01,13.44]
[1746503784562,6.8956006,145.02,145.01,13.44]
[1746503785263,18.64964886,145.01,144.97,94.42]
[1746503785467,18.64964886,145.01,144.99,9.39067376]
[1746503787656,18.64964886,145.01,145.0,9.39067376]
[1746503787855,18.64964886,145.01,144.99,9.39067376]
[1746503790257,18.64964886,145.0,144.97,22.81067376]
[1746503792269,6.89665672,145.0,144.97,22.81067376]
[1746503792455,16.28733048,145.0,144.97,13.42]
[1746503793650,16.28733048,145.0,144.97,22.81067376]
[1746503793651,6.89665672,145.0,144.97,22.81067376]
[1746503793852,25.54587268,145.01,144.98,9.39067376]
[1746503795574,25.54587268,145.01,144.97,13.42]
[1746503795762,18.79181043,145.0,144.97,22.81067376]
[1746503795952,25.68871183,145.0,144.97,22.81067376]
[1746503797474,25.68871183,145.0,144.98,9.39067376]
[1746503798173,25.54579018,145.01,144.98,9.39067376]
[1746503798375,25.54579018,145.01,144.99,9.39067376]
[1746503798572,18.64964886,145.01,144.99,9.39067376]
[1746503801673,6.89523002,145.03,145.0,9.39067376]
[1746503801977,18.64964886,145.03,145.02,9.39067376]
[1746503802184,18.64964886,145.03,145.01,9.39067376]
[1746503809185,25.54482811,145.03,145.01,9.39067376]
[1746503809985,18.64964886,145.03,145.01,9.39067376]
[1746503811571,18.64964886,145.03,145.02,9.39067376]
[1746503812278,18.64964886,145.03,145.01,9.39067376]
[1746503817893,18.64964886,145.03,145.02,9.39067376]
[1746503821005,26.0,145.04,145.02,9.39067376]
[1746503821212,26.0,145.04,145.03,9.39067376]
[1746503824898,44.64964886,145.04,145.03,9.39067376]
[1746503825110,32.89464975,145.04,145.01,81.0]
[1746503825419,32.89464975,145.04,145.02,9.39067376]
[1746503829398,18.64964886,145.03,145.02,9.39067376]
[1746503830818,25.544774,145.03,145.02,9.39067376]
[1746503833886,6.89429609,145.05,145.02,9.39067376]
[1746503834187,6.89286706,145.08,145.04,46.9533688]
[1746503834385,25.54251592,145.08,145.07,9.39067376]
[1746503835121,25.54251592,145.08,145.06,9.39067376]
[1746503837818,25.54251592,145.08,145.06,14.66940035]
[1746503838437,25.54251592,145.08,145.05,28.06940035]
[1746503839311,25.5430511,145.07,145.05,13.4]
[1746503839632,25.5430511,145.07,145.05,28.06940035]
[1746503840334,14.66940035,145.09,145.06,14.66940035]
[1746503840335,6.89284776,145.08,145.06,14.66940035]
[1746503840626,25.54207244,145.09,145.07,14.66940035]
[1746503842815,25.54207244,145.09,145.08,14.66940035]
[1746503842816,18.64964886,145.09,145.08,14.66940035]
[1746503843917,32.89139635,145.11,145.08,14.66940035]
[1746503844212,18.64964886,145.1,145.09,14.66940035]
[1746503844430,18.64964886,145.1,145.08,14.66940035]
[1746503844732,25.54172976,145.1,145.08,14.66940035]
[1746503851232,6.89151815,145.11,145.09,14.66940035]
[1746503851531,18.64964886,145.11,145.09,14.66940035]
[1746503859741,18.64964886,145.11,145.09,9.38443441]
[1746503865446,25.5410612,145.11,145.09,9.38443441]
[1746503865641,0.14216157,145.1,145.05,13.4]
[1746503865849,9.52659598,145.1,145.06,9.38443441]
[1746503866141,18.64964886,145.08,145.07,9.38443441]
[1746503867541,35.06825412,145.1,145.07,9.38443441]
[1746503869142,25.68381971,145.1,145.07,9.38443441]
[1746503870045,26.0,145.13,145.09,9.38443441]
[1746503870223,18.79181043,145.12,145.09,9.38443441]
[1746503870717,28.17624484,145.12,145.08,9.38443441]
[1746503872628,9.38443441,145.1,145.07,103.78443441]
[1746503872837,9.38443441,145.1,145.07,22.78443441]
[1746503873270,9.38443441,145.1,145.07,13.4]
[1746503873934,16.27656045,145.1,145.07,13.4]
[1746503875337,16.27656045,145.1,145.06,9.38443441]
[1746503875946,9.52659598,145.12,145.08,9.38443441]
[1746503876133,18.64964886,145.11,145.08,9.38443441]
[1746503876334,18.64964886,145.11,145.09,9.38443441]
[1746503877650,18.64964886,145.11,145.08,9.38443441]
[1746503879955,18.64964886,145.11,145.08,14.66483685]
[1746503881045,18.64964886,145.11,145.08,95.66483685]
[1746503882640,33.31448571,145.11,145.08,95.66483685]
[1746503886161,33.31448571,145.11,145.08,102.55749591]
[1746503886352,18.64964886,145.11,145.08,102.55749591]
[1746503886865,18.64964886,145.11,145.08,95.66483685]
[1746503887267,33.31448571,145.11,145.08,95.66483685]
[1746503889165,40.20586396,145.11,145.08,95.66483685]
[1746503889367,18.64964886,145.09,145.08,81.0]
[1746503890757,21.5562151,145.11,145.08,81.0]
[1746503890963,18.64964886,145.11,145.08,95.66483685]
[1746503893068,18.64964886,145.11,145.08,14.66483685]
[1746503897173,18.64964886,145.11,145.07,21.55786584]
[1746503898277,33.31448571,145.11,145.07,21.55786584]
[1746503898970,33.31448571,145.11,145.07,102.55786584]
[1746503900080,14.66483685,145.09,145.07,81.0]
[1746503900571,14.66483685,145.1,145.07,81.0]
[1746503901880,9.38782185,145.1,145.07,81.0]
[1746503903868,34.92898838,145.11,145.08,9.38782185]
[1746503904584,28.03747071,145.11,145.08,9.38782185]
[1746503904980,34.92881211,145.11,145.07,90.38782185]
[1746503906282,18.64964886,145.11,145.07,97.28087566]
[1746503906461,28.03747071,145.11,145.07,97.28087566]
[1746503909184,28.03747071,145.11,145.07,110.66087566]
[1746503910986,34.92881848,145.11,145.07,103.76782185]
[1746503912791,34.92881848,145.11,145.07,90.38782185]
[1746503913089,28.03747071,145.08,145.07,81.0]
[1746503913778,18.64964886,145.07,145.06,13.38]
[1746503913976,28.17963228,145.07,145.02,94.38]
[1746503914180,9.38782185,145.05,145.02,94.38]
[1746503915664,16.28204384,145.05,145.02,94.38]
[1746503917791,18.64964886,145.04,145.02,94.38]
[1746503918094,28.03747071,145.04,145.02,13.38]
[1746503918978,34.93222933,145.04,145.02,13.38]
[1746503923105,25.54440748,145.04,145.02,13.38]
[1746503923701,34.93222933,145.04,145.02,13.38]
[1746503923879,9.38782185,145.03,144.99,318.08]
[1746503924085,9.38782185,145.02,144.99,318.08]
[1746503924281,28.03747071,145.01,144.99,81.0]
[1746503925520,18.64964886,145.01,144.99,81.0]
[1746503925701,35.52998342,145.04,145.0,9.38782185]
[1746503925901,18.64964886,145.03,145.01,9.38782185]
[1746503927117,18.64964886,145.03,145.0,9.38782185]
[1746503927818,18.64964886,145.03,145.0,14.67969906]
[1746503929021,18.64964886,145.03,145.0,95.67969906]
[1746503929624,25.54479185,145.03,145.0,95.67969906]
[1746503931919,33.32934792,145.03,145.0,95.67969906]
[1746503932499,40.22458178,145.03,145.0,81.0]
[1746503934921,40.22458178,145.03,144.99,95.67969906]
[1746503936918,18.64964886,145.01,144.99,81.0]
[1746503937127,33.32934792,145.01,144.99,81.0]
[1746503938120,18.64964886,144.99,144.98,13.38]
[1746503946534,21.57595818,145.01,144.98,13.38]
[1746503947131,18.64964886,145.0,144.98,13.38]
[1746503951943,16.29447318,145.02,144.98,22.7787376]
[1746503953646,18.64964886,145.0,144.98,13.38]
[1746503955322,34.94495203,145.0,144.98,13.38]
[1746503956125,34.94495203,145.0,144.96,90.3987376]
[1746503957039,9.3987376,144.99,144.96,81.0]
[1746503958938,18.64964886,144.98,144.96,81.0]
[1746503959340,28.04838646,144.97,144.96,81.0]
[1746503959741,18.64964886,144.96,144.92,81.0]
[1746503959946,16.29773276,144.95,144.92,81.0]
[1746503960134,18.64964886,144.94,144.92,81.0]
[1746503960336,18.64964886,144.94,144.91,90.3987376]
[1746503961251,16.29730422,144.96,144.92,9.3987376]
[1746503961829,21.59552128,144.96,144.92,14.69695466]
[1746503965436,14.69695466,144.96,144.92,14.69695466]
[1746503966472,18.64964886,144.94,144.91,87.90081713]
[1746503966648,18.64964886,144.94,144.91,102.59777179]
[1746503966952,18.64964886,144.94,144.91,14.69695466]
[1746503973565,18.64964886,144.94,144.91,21.59778949]
[1746503977467,18.64964886,144.94,144.91,14.69695466]
[1746503979264,18.64964886,144.94,144.91,21.597766]
[1746503983776,18.64964886,144.94,144.91,16.30777555]
[1746503985682,9.40696421,144.96,144.92,9.40696421]
[1746503985888,18.64964886,144.97,144.95,9.40696421]
[1746503987386,18.64964886,144.97,144.94,9.40696421]
[1746503987962,28.05661307,144.97,144.94,9.40696421]
[1746503990686,28.05661307,144.97,144.93,16.30684691]
[1746503991689,28.05661307,144.97,144.94,9.40696421]
[1746503992064,28.05661307,144.97,144.94,90.40696421]
[1746503994266,34.95471395,144.97,144.94,81.0]
[1746503997989,34.95471395,144.97,144.93,9.40696421]
[1746503998588,34.95471395,144.97,144.93,22.78696421]
[1746503999974,26.0,144.98,144.95,9.40696421]
[1746504000176,26.0,144.98,144.95,90.40696421]
[1746504002791,26.0,144.98,144.94,6.89939026]
[1746504002792,26.0,144.93,144.9,81.0]
[1746504002996,18.64964886,144.9,144.88,13.38]
[1746504003182,28.05661307,144.89,144.88,13.38]
[1746504003694,33.35951763,144.89,144.88,13.38]
[1746504004387,33.35951763,144.89,144.84,94.38]
[1746504004388,18.64964886,144.88,144.84,94.38]
[1746504004585,14.70986877,144.87,144.84,94.38]
[1746504004799,14.70986877,144.88,144.84,94.38]
[1746504006295,18.64964886,144.87,144.84,109.08986877]
[1746504007079,14.70986877,144.88,144.84,109.08986877]
[1746504007573,14.70986877,144.88,144.84,115.99402247]
[1746504009502,14.70986877,144.88,144.84,101.2841537]
[1746504009704,14.70986877,144.88,144.84,115.99402247]
[1746504010099,14.70986877,144.87,144.84,81.0]
[1746504011704,14.70986877,144.88,144.84,102.61383919]
[1746504012106,40.26147444,144.89,144.85,14.70986877]
[1746504013104,40.26147444,144.89,144.85,95.70986877]
[1746504013404,14.70986877,144.88,144.85,81.0]
[1746504014986,14.70986877,144.88,144.85,95.70986877]
[1746504015387,18.64964886,144.87,144.85,81.0]
[1746504018008,25.55256636,144.87,144.85,81.0]
[1746504018206,33.35951763,144.86,144.85,81.0]
[1746504018995,33.35951763,144.86,144.83,94.38]
[1746504019193,18.64964886,144.85,144.83,94.38]
[1746504019510,33.35951763,144.85,144.83,13.38]
[1746504020406,18.64964886,144.85,144.83,13.38]
[1746504021507,18.64964886,144.85,144.83,28.08986877]
[1746504023510,7.04453872,144.88,144.84,14.70986877]
[1746504023717,7.04453872,144.88,144.83,20.28458881]
[1746504023718,18.64964886,144.87,144.85,14.70986877]
[1746504024511,18.64964886,144.87,144.84,14.70986877]
[1746504024919,18.64964886,144.87,144.83,101.28464248]
[1746504025108,18.64964886,144.87,144.84,14.70986877]
[1746504025704,25.55160847,144.89,144.85,14.70986877]
[1746504026011,40.26147724,144.89,144.85,14.70986877]
[1746504028219,18.64964886,144.87,144.84,81.0]
[1746504028415,18.64964886,144.87,144.84,95.70986877]
[1746504028620,18.64964886,144.88,144.85,14.70986877]
[1746504028806,18.64964886,144.88,144.84,81.0]
[1746504029007,14.70986877,144.88,144.84,95.70986877]
[1746504029603,14.70986877,144.88,144.84,109.08986877]
[1746504030827,18.64964886,144.87,144.84,109.08986877]
[1746504032610,14.70986877,144.87,144.84,109.08986877]
[1746504032817,14.70986877,144.87,144.84,94.38]
[1746504034423,33.35951763,144.86,144.84,94.38]
[1746504034631,33.35951763,144.85,144.84,94.38]
[1746504034825,33.35951763,144.85,144.84,13.38]
[1746504035126,40.2632111,144.85,144.84,13.38]
[1746504035932,33.35951763,144.85,144.84,13.38]
[1746504039238,33.35951763,144.85,144.81,115.99544056]
[1746504041141,40.26325162,144.85,144.81,109.08986877]
[1746504041643,40.26325162,144.85,144.82,14.70986877]
[1746504042448,40.26325162,144.85,144.81,94.38]
[1746504042627,14.70986877,144.83,144.81,94.38]
[1746504042823,14.70986877,144.82,144.81,94.38]